fUSD/lending_fUSD_20250302
["ID","MTS","AMOUNT","RATE_DAILY","PERIOD"]
[355158981,1740937875620,-500.0,0.00025894,2]
[355158982,1740937875631,-500.0,0.00025894,2]
[355158983,1740937875642,-500.0,0.00025894,2]
[355158984,1740937875653,-500.0,0.00025894,2]
[355158985,1740937875663,-500.0,0.00025894,2]
[355158986,1740937875673,-500.0,0.00025894,2]
[355158987,1740937875683,-294.1,0.00025894,2]
[355158988,1740937875698,-500.0,0.00025894,2]
[355158989,1740937875708,-506.02,0.00025894,2]
[355158990,1740937875718,-500.0,0.00025894,2]
[355158991,1740937875729,-500.0,0.00025894,2]
[355158992,1740937875744,-500.0,0.00025894,2]
[355158993,1740937875756,-500.0,0.00025894,2]
[355158994,1740937875771,-500.0,0.00025894,2]
[355158995,1740937875781,-500.0,0.00025894,2]
[355158996,1740937875792,-500.0,0.00025894,2]
[355158997,1740937875801,-437.68,0.00025894,2]
[355158998,1740937875812,-1600.0,0.000259,9]
[355158999,1740937875822,-243.10788,0.000259,7]
[355159000,1740937875832,-243.10788,0.000259,7]
[355159001,1740937875842,-10234.7496282,0.00025916,2]
[355159002,1740937875852,-366.349161,0.00025916,7]
[355159003,1740937875862,-366.349161,0.00025916,7]
[355159004,1740937875871,-362.39064584,0.00025969,4]
[355159005,1740937875881,-588.82,0.00025992,2]
[355159006,1740937875891,-500.0,0.00025992,2]
[355159007,1740937875900,-500.0,0.00025992,2]
[355159008,1740937875910,-500.0,0.00025992,2]
[355159009,1740937875920,-500.0,0.00025992,2]
[355159010,1740937875929,-500.0,0.00025992,2]
[355159011,1740937875941,-500.0,0.00025992,2]
[355159012,1740937875956,-500.0,0.00025992,2]
[355159013,1740937875965,-553.15,0.00025992,2]
[355159014,1740937875975,-641.23,0.00025992,2]
[355159015,1740937875985,-500.0,0.00025992,2]
[355159016,1740937875995,-500.0,0.00025992,2]
[355159017,1740937876005,-159.51,0.00025992,2]
[355159018,1740937876015,-500.0,0.00025992,2]
[355159019,1740937876026,-500.0,0.00025992,2]
[355159020,1740937876036,-275.1,0.00025992,2]
[355159021,1740937876045,-500.0,0.00025992,2]
[355159022,1740937876055,-500.0,0.00025992,2]
[355159023,1740937876064,-500.0,0.00025992,2]
[355159024,1740937876074,-500.0,0.00025992,2]
[355159025,1740937876084,-520.82,0.00025992,2]
[355159026,1740937876095,-500.0,0.00025992,2]
[355159027,1740937876104,-500.0,0.00025992,2]
[355159028,1740937876114,-500.0,0.00025992,2]
[355159029,1740937876124,-549.79,0.00025992,2]
[355159030,1740937876134,-500.0,0.00025992,2]
[355159031,1740937876143,-583.9,0.00025992,2]
[355159032,1740937876154,-500.0,0.00025992,2]
[355159033,1740937876163,-626.12,0.00025992,2]
[355159034,1740937876173,-194.4,0.00025992,2]
[355159035,1740937876183,-500.0,0.00025992,2]
[355159036,1740937876195,-500.0,0.00025992,2]
[355159037,1740937876205,-500.0,0.00025992,2]
[355159038,1740937876216,-500.0,0.00025992,2]
[355159039,1740937876226,-500.0,0.00025992,2]
[355159040,1740937876235,-467.34,0.00025992,2]
[355159041,1740937876245,-398.66,0.00025992,2]
[355159042,1740937876255,-500.0,0.00025992,2]
[355159043,1740937876264,-500.0,0.00025992,2]
[355159044,1740937876274,-550.36,0.00025992,2]
[355159045,1740937876283,-600.8,0.00025992,2]
[355159046,1740937876293,-500.0,0.00025992,2]
[355159047,1740937876303,-627.32,0.00025992,2]
[355159048,1740937876312,-500.0,0.00025992,2]
[355159049,1740937876321,-500.0,0.00025992,2]
[355159050,1740937876331,-617.83,0.00025992,2]
[355159051,1740937876340,-500.0,0.00025992,2]
[355159052,1740937876349,-703.69,0.00025992,2]
[355159053,1740937876359,-599.32,0.00025992,2]
[355159054,1740937876368,-500.0,0.00025992,2]
[355159055,1740937876377,-500.0,0.00025992,2]
[355159056,1740937876387,-500.0,0.00025992,2]
[355159057,1740937876396,-500.0,0.00025992,2]
[355159058,1740937876405,-500.0,0.00025992,2]
[355159059,1740937876415,-571.89440989,0.00025992,2]
[355159060,1740937876425,-670.1,0.00025992,2]
[355159061,1740937876434,-637.95,0.00025992,2]
[355159062,1740937876445,-813.8,0.00025992,2]
[355159063,1740937876455,-500.0,0.00025992,2]
[355159064,1740937876465,-996.91,0.00025992,2]
[355159065,1740937876475,-2192.95,0.00025992,2]
[355159066,1740937876484,-500.0,0.00025992,2]
[355159067,1740937876493,-807.59,0.00025992,2]
[355159068,1740937876503,-500.0,0.00025992,2]
[355159069,1740937876512,-1250.18,0.00025992,2]
[355159070,1740937876522,-500.0,0.00025992,2]
[355159071,1740937876531,-703.25,0.00025992,2]
[355159072,1740937876541,-1557.45,0.00025992,2]
[355159073,1740937876551,-1624.15,0.00025992,2]
[355159074,1740937876560,-1549.91,0.00025992,2]
[355159075,1740937876570,-1154.14,0.00025992,2]
[355159076,1740937876579,-730.08,0.00025992,2]
[355159077,1740937876589,-500.0,0.00025992,2]
[355159078,1740937876599,-856.1,0.00025992,2]
[355159079,1740937876610,-500.0,0.00025992,2]
[355159080,1740937876619,-1218.98,0.00025992,2]
[355159081,1740937876629,-1590.11,0.00025992,2]
[355159082,1740937876638,-998.58,0.00025992,2]
[355159083,1740937876649,-500.0,0.00025992,2]
[355159084,1740937876660,-761.57,0.00025992,2]
[355159085,1740937876671,-993.48,0.00025992,2]
[355159086,1740937876682,-855.19,0.00025992,2]
[355159087,1740937876697,-500.0,0.00025992,2]
[355159088,1740937876707,-925.83,0.00025992,2]
[355159089,1740937876718,-532.0,0.00025992,2]
[355159090,1740937876729,-604.56,0.00025992,2]
[355159091,1740937876741,-559.41,0.00025992,2]
[355159092,1740937876752,-500.0,0.00025992,2]
[355159093,1740937876763,-565.81,0.00025992,2]
[355159094,1740937876775,-533.6,0.00025992,2]
[355159095,1740937876787,-964.16,0.00025992,2]
[355159096,1740937876799,-649.62,0.00025992,2]
[355159097,1740937876810,-500.0,0.00025992,2]
[355159098,1740937876822,-500.0,0.00025992,2]
[355159099,1740937876833,-500.0,0.00025992,2]
[355159100,1740937876845,-1097.56,0.00025992,2]
[355159101,1740937876855,-500.0,0.00025992,2]
[355159102,1740937876866,-1028.47,0.00025992,2]
[355159103,1740937876876,-868.34,0.00025992,2]
[355159104,1740937876887,-500.0,0.00025992,2]
[355159105,1740937876898,-945.74,0.00025992,2]
[355159106,1740937876909,-1222.82,0.00025992,2]
[355159107,1740937876924,-500.0,0.00025992,2]
[355159108,1740937876935,-151.0,0.00025992,7]
[355159109,1740937876951,-500.0,0.00025992,2]
[355159110,1740937876963,-883.05,0.00025992,2]
[355159111,1740937876975,-151.0,0.00025992,7]
[355159112,1740937876985,-704.4,0.00025992,2]
[355159113,1740937876997,-6234.66,0.00025992,2]
[355159114,1740937877009,-557.6,0.00025992,2]
[355159115,1740937877019,-500.0,0.00025992,2]
[355159116,1740937877029,-500.0,0.00025992,2]
[355159117,1740937877040,-500.0,0.00025992,2]
[355159118,1740937877050,-1146.22,0.00025992,2]
[355159119,1740937877061,-500.0,0.00025992,2]
[355159120,1740937877070,-500.0,0.00025992,2]
[355159121,1740937877081,-1442.71,0.00025992,2]
[355159122,1740937877091,-500.0,0.00025993,2]
[355159123,1740937877101,-500.0,0.00025993,2]
[355159124,1740937877110,-500.0,0.00025993,2]
[355159125,1740937877120,-564.42,0.00025993,2]
[355159126,1740937877374,-455.44,0.00025993,2]
[355159127,1740937877386,-500.0,0.00025993,2]
[355159128,1740937877396,-577.37,0.00025993,2]
[355159129,1740937877406,-500.0,0.00025993,2]
[355159130,1740937877416,-500.0,0.00025993,2]
[355159131,1740937877427,-500.0,0.00025993,2]
[355159132,1740937877438,-500.0,0.00025993,2]
[355159133,1740937877452,-500.0,0.00025993,2]
[355159134,1740937877462,-500.0,0.00025993,2]
[355159135,1740937877472,-500.0,0.00025993,2]
[355159136,1740937877482,-500.0,0.00025993,2]
[355159137,1740937877491,-500.0,0.00025993,2]
[355159138,1740937877501,-208.8,0.00025993,2]
[355159139,1740937877510,-500.0,0.00025993,2]
[355159140,1740937877519,-325.31,0.00025993,2]
[355159141,1740937877529,-518.68,0.00025993,2]
[355159142,1740937877538,-425.0051329,0.00025993,2]
[355159143,1740937877548,-500.0,0.00025993,2]
[355159144,1740937877557,-636.11,0.00025993,2]
[355159145,1740937877567,-500.0,0.00025993,2]
[355159146,1740937877576,-648.35,0.00025993,2]
[355159147,1740937877586,-500.0,0.00025993,2]
[355159148,1740937877595,-500.0,0.00025993,2]
[355159149,1740937877605,-500.0,0.00025993,2]
[355159150,1740937877614,-500.0,0.00025993,2]
[355159151,1740937877624,-500.0,0.00025993,2]
[355159152,1740937877633,-588.19,0.00025993,2]
[355159153,1740937877643,-500.0,0.00025993,2]
[355159154,1740937877653,-320.58,0.00025993,2]
[355159155,1740937877663,-500.0,0.00025993,2]
[355159156,1740937877673,-500.0,0.00025993,2]
[355159157,1740937877682,-500.0,0.00025993,2]
[355159158,1740937877693,-500.0,0.00025993,2]
[355159159,1740937877706,-500.0,0.00025993,2]
[355159160,1740937877715,-500.0,0.00025993,2]
[355159161,1740937877726,-500.0,0.00025993,2]
[355159162,1740937877735,-981.07,0.00025993,2]
[355159163,1740937877745,-151.0,0.00025993,7]
[355159164,1740937877755,-893.26,0.00025993,2]
[355159165,1740937877765,-151.0,0.00025993,7]
[355159166,1740937877774,-726.79,0.00025993,2]
[355159167,1740937877784,-616.74,0.00025993,2]
[355159168,1740937877793,-561.65,0.00025993,2]
[355159169,1740937877803,-500.0,0.00025993,2]
[355159170,1740937877813,-500.0,0.00025993,2]
[355159171,1740937877823,-500.0,0.00025993,2]
[355159172,1740937877832,-151.0,0.00025993,7]
[355159173,1740937877843,-500.0,0.00025993,2]
[355159174,1740937877854,-500.0,0.00025993,2]
[355159175,1740937877864,-500.0,0.00025993,2]
[355159176,1740937877873,-500.0,0.00025993,2]
[355159177,1740937877883,-500.0,0.00025993,2]
[355159178,1740937877892,-560.28,0.00025993,2]
[355159179,1740937877902,-151.0,0.00025993,7]
[355159180,1740937877912,-500.0,0.00025993,2]
[355159181,1740937877923,-500.0,0.00025993,2]
[355159182,1740937877934,-576.41,0.00025993,2]
[355159183,1740937877944,-151.0,0.00025993,7]
[355159184,1740937877956,-151.0,0.00025993,7]
[355159185,1740937877965,-500.0,0.00025993,2]
[355159186,1740937877975,-151.0,0.00025993,7]
[355159187,1740937877986,-282.86,0.00025993,2]
[355159188,1740937877998,-151.0,0.00025993,7]
[355159189,1740937878009,-500.0,0.00025993,2]
[355159190,1740937878019,-151.0,0.00025993,7]
[355159191,1740937878030,-500.0,0.00025993,2]
[355159192,1740937878040,-500.0,0.00025993,2]
[355159193,1740937878049,-679.32,0.00025993,2]
[355159194,1740937878059,-198.04,0.00025993,2]
[355159195,1740937878070,-500.0,0.00025993,2]
[355159196,1740937878079,-220.224945,0.00025993,7]
[355159197,1740937878090,-220.224945,0.00025993,7]
[355159198,1740937878101,-500.0,0.00025993,2]
[355159199,1740937878112,-605.95,0.00025993,2]
[355159200,1740937878123,-500.0,0.00025993,2]
[355159201,1740937878134,-500.0,0.00025993,2]
[355159202,1740937878146,-151.0,0.00025993,7]
[355159203,1740937878157,-3064.006348,0.00025993,7]
[355159204,1740937878167,-151.0,0.00025993,7]
[355159205,1740937878179,-3064.006348,0.00025993,7]
[355159206,1740937878189,-151.0,0.00025993,7]
[355159207,1740937878203,-151.0,0.00025993,7]
[355159208,1740937878214,-582.51,0.00025993,2]
[355159209,1740937878224,-500.0,0.00025993,2]
[355159210,1740937878235,-500.0,0.00025993,2]
[355159211,1740937878245,-668.22,0.00025993,2]
[355159212,1740937878255,-500.0,0.00025993,2]
[355159213,1740937878265,-574.39,0.00025993,2]
[355159214,1740937878276,-500.0,0.00025993,2]
[355159215,1740937878286,-322.48,0.00025993,2]
[355159216,1740937878297,-661.62,0.00025993,2]
[355159217,1740937878307,-428.41,0.00025993,2]
[355159218,1740937878318,-500.0,0.00025993,2]
[355159219,1740937878328,-500.0,0.00025993,2]
[355159220,1740937878339,-500.0,0.00025993,2]
[355159221,1740937878349,-169.63389,0.00025993,7]
[355159222,1740937878359,-500.0,0.00025993,2]
[355159223,1740937878369,-169.63389,0.00025993,7]
[355159224,1740937878380,-500.0,0.00025993,2]
[355159225,1740937878390,-500.0,0.00025993,2]
[355159226,1740937878400,-500.0,0.00025993,2]
[355159227,1740937878410,-500.0,0.00025993,2]
[355159228,1740937878420,-500.0,0.00025993,2]
[355159229,1740937878431,-500.0,0.00025993,2]
[355159230,1740937878442,-612.47,0.00025993,2]
[355159231,1740937878457,-551.39,0.00025993,2]
[355159232,1740937878468,-1897.95,0.00025993,2]
[355159233,1740937878478,-500.0,0.00025993,2]
[355159234,1740937878489,-500.0,0.00025993,2]
[355159235,1740937878499,-883.35,0.00025993,2]
[355159236,1740937878510,-500.0,0.00025993,2]
[355159237,1740937878522,-500.0,0.00025993,2]
[355159238,1740937878532,-1359.56,0.00025993,2]
[355159239,1740937878543,-2139.64,0.00025993,2]
[355159240,1740937878553,-500.0,0.00025993,2]
[355159241,1740937878563,-500.0,0.00025993,2]
[355159242,1740937878573,-666.3,0.00025993,2]
[355159243,1740937878584,-475.84,0.00025993,2]
[355159244,1740937878595,-1000.0,0.00025993,2]
[355159245,1740937878605,-506.21,0.00025993,2]
[355159246,1740937878615,-500.0,0.00025993,2]
[355159247,1740937878625,-1243.74,0.00025993,2]
[355159248,1740937878634,-551.88,0.00025993,2]
[355159249,1740937878645,-1338.27,0.00025993,2]
[355159250,1740937878655,-580.22,0.00025993,2]
[355159251,1740937878666,-500.0,0.00025993,2]
[355159252,1740937878676,-500.0,0.00025993,2]
[355159253,1740937878686,-151.0,0.00025993,7]
[355159254,1740937878699,-500.0,0.00025993,2]
[355159255,1740937878709,-500.0,0.00025993,2]
[355159256,1740937878719,-900.63,0.00025993,2]
[355159257,1740937878730,-500.0,0.00025993,2]
[355159258,1740937878740,-248.019775,0.00025993,7]
[355159259,1740937878751,-711.69,0.00025993,2]
[355159260,1740937878762,-248.019775,0.00025993,7]
[355159261,1740937878773,-1990.27,0.00025993,2]
[355159262,1740937878784,-151.0,0.00025993,7]
[355159263,1740937878795,-500.0,0.00025993,2]
[355159264,1740937878806,-789.39,0.00025993,2]
[355159265,1740937878817,-230.222455,0.00025993,7]
[355159266,1740937878828,-2000.73,0.00025993,2]
[355159267,1740937878840,-230.222455,0.00025993,7]
[355159268,1740937878850,-561.03,0.00025993,2]
[355159269,1740937878862,-1144.17,0.00025993,2]
[355159270,1740937878873,-500.0,0.00025993,2]
[355159271,1740937878885,-500.0,0.00025993,2]
[355159272,1740937878895,-10000.0,0.00025993,7]
[355159273,1740937878906,-500.0,0.00025993,2]
[355159274,1740937878918,-10000.0,0.00025993,7]
[355159275,1740937878930,-10000.0,0.00025993,7]
[355159276,1740937878940,-812.93,0.00025993,2]
[355159277,1740937878954,-615.1,0.00025993,2]
[355159278,1740937878965,-500.0,0.00025993,2]
[355159279,1740937878977,-623.5,0.00025993,2]
[355159280,1740937878988,-500.0,0.00025993,2]
[355159281,1740937878998,-500.0,0.00025993,2]
[355159282,1740937879009,-500.0,0.00025993,2]
[355159283,1740937879020,-762.88,0.00025993,2]
[355159284,1740937879029,-500.0,0.00026026,2]
[355159285,1740937879039,-1114.43,0.00026027,2]
[355159286,1740937879050,-500.0,0.00026027,2]
[355159287,1740937879059,-678.56,0.00026027,2]
[355159288,1740937879070,-500.0,0.00026027,2]
[355159289,1740937879079,-500.0,0.00026027,2]
[355159290,1740937879090,-500.0,0.00026027,2]
[355159291,1740937879099,-701.59,0.00026027,2]
[355159292,1740937879110,-500.0,0.00026027,2]
[355159293,1740937879120,-500.0,0.00026027,2]
[355159294,1740937879131,-151.0,0.00026027,7]
[355159295,1740937879142,-151.0,0.00026027,7]
[355159296,1740937879152,-151.0,0.00026027,7]
[355159297,1740937879163,-151.0,0.00026027,7]
[355159298,1740937879174,-212.0767644,0.0002607,2]
[355159299,1740937879184,-500.0,0.00026166,2]
[355159300,1740937879194,-500.0,0.00026166,2]
[355159301,1740937879208,-1027.09,0.00026166,2]
[355159302,1740937879219,-500.0,0.00026166,2]
[355159303,1740937879230,-500.0,0.00026166,2]
[355159304,1740937879242,-661.31,0.00026166,2]
[355159305,1740937879252,-500.0,0.00026166,2]
[355159306,1740937879262,-664.68,0.00026166,2]
[355159307,1740937879273,-500.0,0.00026166,2]
[355159308,1740937879284,-500.0,0.00026166,2]
[355159309,1740937879293,-688.44,0.00026166,2]
[355159310,1740937879303,-799.43,0.00026166,2]
[355159311,1740937879313,-1011.96,0.00026166,2]
[355159312,1740937879324,-500.0,0.00026166,2]
[355159313,1740937879334,-547.39,0.00026166,2]
[355159314,1740937879344,-980.75,0.00026166,2]
[355159315,1740937879355,-758.27,0.00026166,2]
[355159316,1740937879365,-500.0,0.00026166,2]
[355159317,1740937879375,-638.55,0.00026166,2]
[355159318,1740937879386,-500.0,0.00026166,2]
[355159319,1740937879396,-500.0,0.00026166,2]
[355159320,1740937879406,-500.0,0.00026166,2]
[355159321,1740937879416,-500.0,0.00026166,2]
[355159322,1740937879428,-500.0,0.00026166,2]
[355159323,1740937879438,-537.89,0.00026166,2]
[355159324,1740937879452,-1342.57,0.00026166,2]
[355159325,1740937879462,-500.0,0.00026166,2]
[355159326,1740937879472,-501.29,0.00026166,2]
[355159327,1740937879482,-500.0,0.00026167,2]
[355159328,1740937879493,-359.67693537,0.00026167,2]
[355159329,1740937879504,-500.0,0.00026167,2]
[355159330,1740937879515,-1328.36,0.00026167,2]
[355159331,1740937879525,-400.963399,0.00026167,2]
[355159332,1740937879536,-877.08,0.00026167,2]
[355159333,1740937879546,-1696.63,0.00026167,2]
[355159334,1740937879556,-500.0,0.00026167,2]
[355159335,1740937879566,-500.0,0.00026167,2]
[355159336,1740937879577,-312.078972,0.00026167,2]
[355159337,1740937879587,-500.0,0.00026167,2]
[355159338,1740937879597,-992.81,0.00026167,2]
[355159339,1740937879608,-500.0,0.00026167,2]
[355159340,1740937879618,-500.0,0.00026167,2]
[355159341,1740937879627,-1164.54,0.00026167,2]
[355159342,1740937879638,-3123.18,0.00026167,2]
[355159343,1740937879649,-1410.0,0.00026167,2]
[355159344,1740937879659,-500.0,0.00026167,2]
[355159345,1740937879670,-1234.93,0.00026167,2]
[355159346,1740937879680,-1043.6,0.00026167,2]
[355159347,1740937879691,-500.0,0.00026167,2]
[355159348,1740937879705,-1694.27,0.00026167,2]
[355159349,1740937879715,-323.28,0.00026167,2]
[355159350,1740937879725,-552.83454262,0.00026167,2]
[355159351,1740937879735,-1334.61,0.00026167,2]
[355159352,1740937879746,-784.6,0.00026167,2]
[355159353,1740937879757,-500.0,0.00026167,2]
[355159354,1740937879768,-1672.23,0.00026167,2]
[355159355,1740937879779,-500.0,0.00026167,2]
[355159356,1740937879790,-2496.59,0.00026167,2]
[355159357,1740937879801,-1537.3,0.00026167,2]
[355159358,1740937879811,-500.83,0.00026167,2]
[355159359,1740937879821,-1129.86,0.00026167,2]
[355159360,1740937879831,-907.66,0.00026167,2]
[355159361,1740937879841,-1407.11,0.00026167,2]
[355159362,1740937879851,-198.22,0.00026167,2]
[355159363,1740937879861,-500.0,0.00026167,2]
[355159364,1740937879871,-500.0,0.00026167,2]
[355159365,1740937879880,-686.18,0.00026167,2]
[355159366,1740937879890,-259.0,0.00026167,2]
[355159367,1740937879899,-649.02,0.00026167,2]
[355159368,1740937879910,-484.87,0.00026167,2]
[355159369,1740937879920,-765.63,0.00026167,2]
[355159370,1740937879930,-284.6428815,0.00026167,2]
[355159371,1740937879940,-1189.75,0.00026167,2]
[355159372,1740937879955,-457.45,0.00026167,2]
[355159373,1740937879967,-533.52,0.00026167,2]
[355159374,1740937879976,-500.0,0.00026167,2]
[355159375,1740937879987,-767.22,0.00026167,2]
[355159376,1740937879998,-2132.66,0.00026167,2]
[355159377,1740937880008,-450.28,0.00026168,2]
[355159378,1740937880018,-500.0,0.00026168,2]
[355159379,1740937880028,-569.92,0.00026168,2]
[355159380,1740937880038,-500.0,0.00026168,2]
[355159381,1740937880047,-500.0,0.00026168,2]
[355159382,1740937880057,-500.0,0.00026168,2]
[355159383,1740937880067,-500.0,0.00026168,2]
[355159384,1740937880077,-561.04,0.00026168,2]
[355159385,1740937880087,-500.0,0.00026168,2]
[355159386,1740937880096,-571.0,0.00026168,2]
[355159387,1740937880106,-643.93,0.00026168,2]
[355159388,1740937880115,-500.0,0.00026168,2]
[355159389,1740937880125,-500.0,0.00026168,2]
[355159390,1740937880135,-500.0,0.00026168,2]
[355159391,1740937880145,-521.91462996,0.00026168,2]
[355159392,1740937880154,-251.33,0.00026168,2]
[355159393,1740937880164,-500.0,0.00026168,2]
[355159394,1740937880174,-500.0,0.00026168,2]
[355159395,1740937880184,-554.65,0.00026168,2]
[355159396,1740937880193,-500.0,0.00026168,2]
[355159397,1740937880208,-500.0,0.00026168,2]
[355159398,1740937880219,-362.84,0.00026168,2]
[355159399,1740937880230,-500.0,0.00026168,2]
[355159400,1740937880240,-547.34,0.00026168,2]
[355159401,1740937880251,-500.0,0.00026168,2]
[355159402,1740937880263,-500.0,0.00026168,2]
[355159403,1740937880274,-354.68,0.00026168,2]
[355159404,1740937880285,-500.0,0.00026168,2]
[355159405,1740937880296,-637.01,0.00026168,2]
[355159406,1740937880307,-411.2,0.00026168,2]
[355159407,1740937880318,-500.0,0.00026168,2]
[355159408,1740937880328,-500.0,0.00026168,2]
[355159409,1740937880340,-449.21,0.00026168,2]
[355159410,1740937880350,-357.92,0.00026168,2]
[355159411,1740937880361,-500.0,0.00026168,2]
[355159412,1740937880371,-500.0,0.00026168,2]
[355159413,1740937880603,-500.0,0.00026168,2]
[355159414,1740937880615,-1481.74977289,0.00026176,9]
[355159415,1740937880625,-617035.50399716,0.00026176,9]
[355159416,1740937880981,-530.5801518,0.00026176,9]
[355159417,1740937880993,-92837.8155508,0.00026176,9]
[355159418,1740937881357,-2656.70605,0.00026176,9]
[355159419,1740937881369,-862.79188158,0.00026176,9]
[355159420,1740937881380,-4216.81540653,0.00026176,9]
[355159421,1740937881391,-529.20318618,0.00026176,9]
[355159422,1740937881403,-13145.44018457,0.00026176,9]
[355159423,1740937881414,-1892.20312036,0.00026176,9]
[355159424,1740937881428,-13631.13444,0.00026176,9]
[355159425,1740937881439,-2689.75,0.00026176,9]
[355159426,1740937881493,-325.69890286,0.00024896,2]
[355159427,1740937881506,-174.30109714,0.00024896,2]
[355159428,1740937881515,-500.0,0.0002517,2]
[355159429,1740937881525,-1552.96415816,0.00026176,9]
[355159430,1740937881605,-2905.46,0.00024796,2]
[355159431,1740937881615,-183599.90658674,0.00026176,9]
[355159432,1740937881626,-1837.2,0.00026176,9]
[355159433,1740937881732,-222.9196,0.00024444,2]
[355159434,1740937881742,-138.53401106,0.00024796,2]
[355159435,1740937881759,-446.46598894,0.00024796,2]
[355159436,1740937881768,-284.64823324,0.00024896,2]
[355159437,1740937881779,-2905.46,0.0002507,2]
[355159438,1740937881789,-2905.46,0.00025344,2]
[355159439,1740937881799,-500.0,0.00025444,2]
[355159440,1740937881810,-2905.46,0.00025618,2]
[355159441,1740937881820,-2905.46,0.00025892,2]
[355159442,1740937881830,-2905.46,0.00026166,2]
[355159443,1740937881840,-200358.05816627,0.00026176,9]
[355159444,1740937881850,-362.39064584,0.00026176,4]
[355159445,1740937881860,-2231.13453195,0.00026212,2]
[355159446,1740937881870,-10234.7496282,0.0002622,2]
[355159447,1740937881880,-182.42,0.0002626,2]
[355159448,1740937881890,-588.82,0.00026266,2]
[355159449,1740937881899,-500.0,0.00026266,2]
[355159450,1740937881909,-500.0,0.00026266,2]
[355159451,1740937881919,-500.0,0.00026266,2]
[355159452,1740937881932,-500.0,0.00026266,2]
[355159453,1740937881943,-500.0,0.00026266,2]
[355159454,1740937881957,-500.0,0.00026266,2]
[355159455,1740937881969,-553.15,0.00026266,2]
[355159456,1740937881979,-641.23,0.00026266,2]
[355159457,1740937881989,-231.97,0.00026266,2]
[355159458,1740937882000,-500.0,0.00026266,2]
[355159459,1740937882011,-646.78,0.00026266,2]
[355159460,1740937882021,-500.0,0.00026266,2]
[355159461,1740937882031,-500.0,0.00026266,2]
[355159462,1740937882041,-500.0,0.00026266,2]
[355159463,1740937882051,-644.84690017,0.00026266,2]
[355159464,1740937882061,-500.0,0.00026266,2]
[355159465,1740937882071,-520.82,0.00026266,2]
[355159466,1740937882080,-500.0,0.00026266,2]
[355159467,1740937882090,-436.82214341,0.00026266,2]
[355159468,1740937882100,-500.0,0.00026266,2]
[355159469,1740937882111,-549.79,0.00026266,2]
[355159470,1740937882120,-500.0,0.00026266,2]
[355159471,1740937882130,-583.9,0.00026266,2]
[355159472,1740937882139,-293.46,0.00026266,2]
[355159473,1740937882149,-358.96,0.00026266,2]
[355159474,1740937882159,-418.98,0.00026266,2]
[355159475,1740937882168,-500.0,0.00026266,2]
[355159476,1740937882178,-500.0,0.00026266,2]
[355159477,1740937882188,-500.0,0.00026266,2]
[355159478,1740937882200,-500.0,0.00026266,2]
[355159479,1740937882216,-500.0,0.00026266,2]
[355159480,1740937882227,-550.36,0.00026266,2]